[Event "Titled Tuesday Blitz March 21 Late 2023"]
[White "Jiganchine, Roman"]
[Black "Gallegos Diaz, Carlos Alberto"]
[WhiteFideId "2603667"]
[BlackFideId "3900886"]
[WhiteElo "2297"]
[BlackElo "2362"]
[Result "1-0"]
[Round "07"]
[TimeControl "180+2"]
[Date "2023.03.21"]
[WhiteClock "0:00:56"]
[BlackClock "0:00:18"]

1. e4 {[%clk 0:02:59]}  d6 {[%clk 0:02:59]} 2. d4 {[%clk 0:02:58]}  Nf6 {[%clk 0:02:58]} 3. Nc3 {[%clk 0:02:58]}  c6 {[%clk 0:02:59]} 4. f4 {[%clk 0:02:54]}  Qa5 {[%clk 0:02:59]} 5. Nf3 {[%clk 0:02:53]}  Nxe4 {[%clk 0:02:58]} 6. Bd3 {[%clk 0:02:40]}  Nf6 {[%clk 0:02:44]} 7. O-O {[%clk 0:02:38]}  Bg4 {[%clk 0:02:25]} 8. Bd2 {[%clk 0:02:29]}  Qb6 {[%clk 0:02:12]} 9. h3 {[%clk 0:02:26]}  Bxf3 {[%clk 0:02:10]} 10. Qxf3 {[%clk 0:02:25]}  Nbd7 {[%clk 0:02:10]} 11. Ne2 {[%clk 0:02:19]}  e6 {[%clk 0:01:41]} 12. c4 {[%clk 0:02:14]}  Be7 {[%clk 0:01:36]} 13. Kh1 {[%clk 0:02:13]}  g6 {[%clk 0:00:59]} 14. Bc3 {[%clk 0:02:12]}  d5 {[%clk 0:00:58]} 15. Ng3 {[%clk 0:01:57]}  h5 {[%clk 0:00:50]} 16. f5 {[%clk 0:01:49]}  gxf5 {[%clk 0:00:40]} 17. Rae1 {[%clk 0:01:49]}  O-O-O {[%clk 0:00:30]} 18. c5 {[%clk 0:01:36]}  Qc7 {[%clk 0:00:26]} 19. Nxf5 {[%clk 0:01:36]}  exf5 {[%clk 0:00:19]} 20. Rxe7 {[%clk 0:01:35]}  Ne4 {[%clk 0:00:20]} 21. Bxe4 {[%clk 0:01:27]}  fxe4 {[%clk 0:00:21]} 22. Qf4 {[%clk 0:01:14]}  Qxf4 {[%clk 0:00:19]} 23. Rxf4 {[%clk 0:01:14]}  Rdf8 {[%clk 0:00:20]} 24. Rfxf7 {[%clk 0:01:11]}  Rxf7 {[%clk 0:00:20]} 25. Rxf7 {[%clk 0:01:12]}  Rf8 {[%clk 0:00:18]} 26. Rh7 {[%clk 0:00:56]} 1-0


[Site "https://www.chess.com"]

[Event "Titled Tuesday Blitz March 21 Late 2023"]
[White "olga-belka"]
[Black "Castella Garcia, Fausto"]
[BlackFideId "3501922"]
[WhiteElo "2240"]
[BlackElo "2245"]
[Result "1-0"]
[Round "07"]
[TimeControl "180+2"]
[Date "2023.03.21"]
[WhiteClock "0:00:15"]
[BlackClock "0:01:15"]

1. e4 {[%clk 0:02:58]}  c5 {[%clk 0:02:28]} 2. Nf3 {[%clk 0:02:57]}  d6 {[%clk 0:02:28]} 3. Bb5+ {[%clk 0:02:56]}  Bd7 {[%clk 0:02:28]} 4. Bxd7+ {[%clk 0:02:53]}  Nxd7 {[%clk 0:02:29]} 5. O-O {[%clk 0:02:53]}  Ngf6 {[%clk 0:02:28]} 6. Re1 {[%clk 0:02:52]}  g6 {[%clk 0:02:26]} 7. c3 {[%clk 0:02:50]}  Bg7 {[%clk 0:02:25]} 8. d4 {[%clk 0:02:50]}  O-O {[%clk 0:02:20]} 9. Nbd2 {[%clk 0:02:47]}  cxd4 {[%clk 0:02:17]} 10. cxd4 {[%clk 0:02:47]}  e5 {[%clk 0:02:12]} 11. Nc4 {[%clk 0:02:33]}  Qc7 {[%clk 0:02:11]} 12. b3 {[%clk 0:02:20]}  Nxe4 {[%clk 0:02:06]} 13. Rxe4 {[%clk 0:02:17]}  d5 {[%clk 0:02:05]} 14. Rxe5 {[%clk 0:02:06]}  dxc4 {[%clk 0:02:03]} 15. Re7 {[%clk 0:01:57]}  Qd6 {[%clk 0:02:02]} 16. Re2 {[%clk 0:01:37]}  Nb6 {[%clk 0:01:53]} 17. Bg5 {[%clk 0:01:31]}  c3 {[%clk 0:01:50]} 18. Be7 {[%clk 0:01:29]}  Qd5 {[%clk 0:01:47]} 19. Bxf8 {[%clk 0:01:19]}  Rxf8 {[%clk 0:01:46]} 20. Rc1 {[%clk 0:01:17]}  Rc8 {[%clk 0:01:44]} 21. Qd3 {[%clk 0:01:16]}  Qa5 {[%clk 0:01:40]} 22. h3 {[%clk 0:00:48]}  Nd5 {[%clk 0:01:38]} 23. Ne5 {[%clk 0:00:39]}  Nf4 {[%clk 0:01:34]} 24. Qf3 {[%clk 0:00:28]}  Nxe2+ {[%clk 0:01:34]} 25. Qxe2 {[%clk 0:00:28]}  Qd5 {[%clk 0:01:18]} 26. Qe3 {[%clk 0:00:21]}  c2 {[%clk 0:01:15]} 27. Nf3 {[%clk 0:00:15]} 1-0


[Site "https://www.chess.com"]

[Event "Titled Tuesday Blitz March 21 Late 2023"]
[White "Fajdetic, Hrvoje"]
[Black "Olsson, William"]
[WhiteFideId "14501945"]
[BlackFideId "1741721"]
[WhiteElo "2185"]
[BlackElo "2197"]
[Result "0-1"]
[Round "07"]
[TimeControl "180+2"]
[Date "2023.03.21"]
[WhiteClock "0:00:01"]
[BlackClock "0:00:02"]

1. d4 {[%clk 0:02:49]}  d5 {[%clk 0:02:59]} 2. c4 {[%clk 0:02:49]}  c6 {[%clk 0:02:59]} 3. cxd5 {[%clk 0:02:48]}  cxd5 {[%clk 0:03:00]} 4. Bf4 {[%clk 0:02:48]}  Nf6 {[%clk 0:02:59]} 5. e3 {[%clk 0:02:49]}  Nc6 {[%clk 0:02:58]} 6. Nc3 {[%clk 0:02:49]}  Bf5 {[%clk 0:02:58]} 7. Qb3 {[%clk 0:02:49]}  Na5 {[%clk 0:02:55]} 8. Qa4+ {[%clk 0:02:48]}  Bd7 {[%clk 0:02:54]} 9. Bb5 {[%clk 0:02:47]}  Nc6 {[%clk 0:02:40]} 10. Nf3 {[%clk 0:02:34]}  e6 {[%clk 0:02:41]} 11. Ne5 {[%clk 0:02:32]}  Nxe5 {[%clk 0:02:33]} 12. dxe5 {[%clk 0:02:30]}  Bxb5 {[%clk 0:02:27]} 13. Nxb5 {[%clk 0:02:24]}  Nd7 {[%clk 0:02:27]} 14. Rc1 {[%clk 0:02:18]}  Rc8 {[%clk 0:02:22]} 15. O-O {[%clk 0:02:13]}  a6 {[%clk 0:02:15]} 16. Rxc8 {[%clk 0:01:13]}  Qxc8 {[%clk 0:02:11]} 17. Nd6+ {[%clk 0:00:54]}  Bxd6 {[%clk 0:02:11]} 18. exd6 {[%clk 0:00:54]}  O-O {[%clk 0:02:10]} 19. e4 {[%clk 0:00:54]}  Nc5 {[%clk 0:02:01]} 20. Qb4 {[%clk 0:00:33]}  Nd3 {[%clk 0:01:32]} 21. Qd2 {[%clk 0:00:30]}  dxe4 {[%clk 0:01:31]} 22. f3 {[%clk 0:00:24]}  Nxf4 {[%clk 0:00:53]} 23. Qxf4 {[%clk 0:00:25]}  exf3 {[%clk 0:00:53]} 24. Rxf3 {[%clk 0:00:24]}  Qc5+ {[%clk 0:00:35]} 25. Kh1 {[%clk 0:00:22]}  e5 {[%clk 0:00:34]} 26. Qd2 {[%clk 0:00:19]}  Rd8 {[%clk 0:00:30]} 27. Rd3 {[%clk 0:00:19]}  e4 {[%clk 0:00:30]} 28. Rd5 {[%clk 0:00:14]}  Qc4 {[%clk 0:00:30]} 29. h3 {[%clk 0:00:12]}  e3 {[%clk 0:00:28]} 30. Qd3 {[%clk 0:00:10]}  Qxd3 {[%clk 0:00:24]} 31. Rxd3 {[%clk 0:00:11]}  f5 {[%clk 0:00:20]} 32. g3 {[%clk 0:00:10]}  Kf7 {[%clk 0:00:17]} 33. Kg2 {[%clk 0:00:10]}  e2 {[%clk 0:00:14]} 34. Kf2 {[%clk 0:00:09]}  Ke6 {[%clk 0:00:13]} 35. Kxe2 {[%clk 0:00:08]}  Rxd6 {[%clk 0:00:13]} 36. Re3+ {[%clk 0:00:08]}  Kf6 {[%clk 0:00:13]} 37. Kf3 {[%clk 0:00:08]}  g5 {[%clk 0:00:14]} 38. Rb3 {[%clk 0:00:08]}  b5 {[%clk 0:00:13]} 39. h4 {[%clk 0:00:08]}  h6 {[%clk 0:00:13]} 40. hxg5+ {[%clk 0:00:08]}  hxg5 {[%clk 0:00:13]} 41. a4 {[%clk 0:00:09]}  bxa4 {[%clk 0:00:12]} 42. Rb4 {[%clk 0:00:09]}  Rd3+ {[%clk 0:00:11]} 43. Kf2 {[%clk 0:00:09]}  Rd2+ {[%clk 0:00:10]} 44. Kf3 {[%clk 0:00:08]}  Rd3+ {[%clk 0:00:10]} 45. Kf2 {[%clk 0:00:08]}  Rd6 {[%clk 0:00:10]} 46. Rxa4 {[%clk 0:00:07]}  g4 {[%clk 0:00:10]} 47. Ra5 {[%clk 0:00:06]}  Kg5 {[%clk 0:00:10]} 48. Ke3 {[%clk 0:00:06]}  Rb6 {[%clk 0:00:10]} 49. Ra2 {[%clk 0:00:05]}  Rb3+ {[%clk 0:00:09]} 50. Kf2 {[%clk 0:00:05]}  Rf3+ {[%clk 0:00:10]} 51. Kg2 {[%clk 0:00:05]}  Rd3 {[%clk 0:00:08]} 52. Kf2 {[%clk 0:00:05]}  Rd6 {[%clk 0:00:05]} 53. Ke3 {[%clk 0:00:05]}  Kf6 {[%clk 0:00:04]} 54. Kf4 {[%clk 0:00:04]}  Re6 {[%clk 0:00:04]} 55. Ra4 {[%clk 0:00:02]}  Rd6 {[%clk 0:00:01]} 56. b3 {[%clk 0:00:02]}  Re6 {[%clk 0:00:02]} 57. Rb4 {[%clk 0:00:01]}  Rc6 {[%clk 0:00:02]} 0-1


[Site "https://www.chess.com"]

[Event "Titled Tuesday Blitz March 21 Late 2023"]
[White "Tymrakiewicz, Rafal"]
[Black "Fernandez Hernandez, Gerardo"]
[WhiteFideId "1108832"]
[BlackFideId "2207400"]
[WhiteElo "2151"]
[BlackElo "2221"]
[Result "1-0"]
[Round "07"]
[TimeControl "180+2"]
[Date "2023.03.21"]
[WhiteClock "0:01:04"]
[BlackClock "0:00:05"]

1. e4 {[%clk 0:03:00]}  e6 {[%clk 0:03:00]} 2. d4 {[%clk 0:03:00]}  d5 {[%clk 0:03:00]} 3. e5 {[%clk 0:02:59]}  c5 {[%clk 0:03:00]} 4. c3 {[%clk 0:03:00]}  Nc6 {[%clk 0:03:01]} 5. Nf3 {[%clk 0:02:57]}  Qb6 {[%clk 0:03:01]} 6. Bd3 {[%clk 0:02:57]}  Nh6 {[%clk 0:02:59]} 7. dxc5 {[%clk 0:02:56]}  Bxc5 {[%clk 0:02:52]} 8. O-O {[%clk 0:02:56]}  O-O {[%clk 0:02:47]} 9. b4 {[%clk 0:02:56]}  Be7 {[%clk 0:02:29]} 10. a3 {[%clk 0:02:56]}  Ng4 {[%clk 0:02:04]} 11. Qe2 {[%clk 0:02:54]}  f5 {[%clk 0:02:03]} 12. h3 {[%clk 0:02:47]}  Nh6 {[%clk 0:02:03]} 13. Be3 {[%clk 0:02:47]}  Qc7 {[%clk 0:02:00]} 14. Bf4 {[%clk 0:02:33]}  Bd7 {[%clk 0:01:46]} 15. Re1 {[%clk 0:02:33]}  Rac8 {[%clk 0:01:31]} 16. Nbd2 {[%clk 0:02:33]}  Nf7 {[%clk 0:01:25]} 17. Nb3 {[%clk 0:02:32]}  g5 {[%clk 0:01:20]} 18. Bh2 {[%clk 0:02:31]}  f4 {[%clk 0:01:18]} 19. Nbd4 {[%clk 0:02:27]}  Nxd4 {[%clk 0:01:12]} 20. cxd4 {[%clk 0:02:25]}  Nh6 {[%clk 0:01:10]} 21. Nxg5 {[%clk 0:02:18]}  Bxg5 {[%clk 0:01:04]} 22. Qh5 {[%clk 0:02:18]}  Qd8 {[%clk 0:00:59]} 23. h4 {[%clk 0:02:06]}  Be8 {[%clk 0:00:55]} 24. Qxg5+ {[%clk 0:02:05]}  Qxg5 {[%clk 0:00:52]} 25. hxg5 {[%clk 0:02:06]}  Ng4 {[%clk 0:00:49]} 26. Rac1 {[%clk 0:02:00]}  Rxc1 {[%clk 0:00:48]} 27. Rxc1 {[%clk 0:01:53]}  Nxh2 {[%clk 0:00:37]} 28. Kxh2 {[%clk 0:01:52]}  Bg6 {[%clk 0:00:37]} 29. Bxg6 {[%clk 0:01:46]}  hxg6 {[%clk 0:00:38]} 30. Kh3 {[%clk 0:01:46]}  Kg7 {[%clk 0:00:35]} 31. Kg4 {[%clk 0:01:45]}  Rh8 {[%clk 0:00:30]} 32. Rc7+ {[%clk 0:01:44]}  Kg8 {[%clk 0:00:30]} 33. Rc8+ {[%clk 0:01:45]}  Kg7 {[%clk 0:00:29]} 34. Rxh8 {[%clk 0:01:45]}  Kxh8 {[%clk 0:00:29]} 35. Kxf4 {[%clk 0:01:45]}  b5 {[%clk 0:00:26]} 36. g4 {[%clk 0:01:33]}  Kg7 {[%clk 0:00:25]} 37. Kg3 {[%clk 0:01:33]}  Kf7 {[%clk 0:00:24]} 38. f4 {[%clk 0:01:33]}  Ke7 {[%clk 0:00:23]} 39. f5 {[%clk 0:01:26]}  Kf7 {[%clk 0:00:21]} 40. Kh4 {[%clk 0:01:26]}  Kf8 {[%clk 0:00:11]} 41. fxg6 {[%clk 0:01:19]}  Kg7 {[%clk 0:00:11]} 42. Kh5 {[%clk 0:01:19]}  a6 {[%clk 0:00:11]} 43. Kh4 {[%clk 0:01:09]}  Kxg6 {[%clk 0:00:12]} 44. Kh3 {[%clk 0:01:07]}  Kxg5 {[%clk 0:00:08]} 45. Kg3 {[%clk 0:01:07]}  Kh6 {[%clk 0:00:08]} 46. Kh4 {[%clk 0:01:01]}  Kg6 {[%clk 0:00:08]} 47. g5 {[%clk 0:01:00]}  Kg7 {[%clk 0:00:05]} 48. Kh5 {[%clk 0:01:01]}  Kf7 {[%clk 0:00:04]} 49. g6+ {[%clk 0:01:02]}  Kg7 {[%clk 0:00:04]} 50. Kg5 {[%clk 0:01:03]}  Kg8 {[%clk 0:00:04]} 51. Kf6 {[%clk 0:01:04]}  Kf8 {[%clk 0:00:04]} 52. Kxe6 {[%clk 0:01:04]}  Kg7 {[%clk 0:00:05]} 53. Kf5 {[%clk 0:01:04]} 1-0


[Site "https://www.chess.com"]

[Event "Titled Tuesday Blitz March 21 Late 2023"]
[White "Jimenez Fernandez, Rebeca"]
[Black "Prieto Aranguren, Alain"]
[WhiteFideId "32070934"]
[BlackFideId "2268906"]
[WhiteElo "2008"]
[BlackElo "2209"]
[Result "1-0"]
[Round "07"]
[TimeControl "180+2"]
[Date "2023.03.21"]
[WhiteClock "0:00:17"]
[BlackClock "0:00:06"]

1. e4 {[%clk 0:03:00]}  c6 {[%clk 0:02:54]} 2. d4 {[%clk 0:03:00]}  d5 {[%clk 0:02:42]} 3. exd5 {[%clk 0:02:59]}  cxd5 {[%clk 0:02:42]} 4. c3 {[%clk 0:03:00]}  Qc7 {[%clk 0:02:41]} 5. Bd3 {[%clk 0:03:00]}  Nc6 {[%clk 0:02:40]} 6. Ne2 {[%clk 0:02:58]}  Bg4 {[%clk 0:02:40]} 7. Be3 {[%clk 0:02:54]}  e6 {[%clk 0:02:30]} 8. Nd2 {[%clk 0:02:53]}  Bd6 {[%clk 0:02:19]} 9. h3 {[%clk 0:02:51]}  Bh5 {[%clk 0:02:15]} 10. O-O {[%clk 0:02:31]}  Nf6 {[%clk 0:02:01]} 11. a3 {[%clk 0:01:57]}  O-O {[%clk 0:01:58]} 12. c4 {[%clk 0:01:44]}  dxc4 {[%clk 0:01:56]} 13. Nxc4 {[%clk 0:01:44]}  Nd5 {[%clk 0:01:55]} 14. Nxd6 {[%clk 0:01:29]}  Qxd6 {[%clk 0:01:48]} 15. Qd2 {[%clk 0:00:56]}  Rac8 {[%clk 0:01:32]} 16. Nf4 {[%clk 0:00:40]}  Nxf4 {[%clk 0:01:20]} 17. Bxf4 {[%clk 0:00:40]}  Qxd4 {[%clk 0:01:18]} 18. Be3 {[%clk 0:00:29]}  Qf6 {[%clk 0:01:14]} 19. Bg5 {[%clk 0:00:23]}  Qd4 {[%clk 0:01:09]} 20. Be3 {[%clk 0:00:22]}  Qd8 {[%clk 0:01:05]} 21. Bc5 {[%clk 0:00:18]}  Re8 {[%clk 0:00:59]} 22. Qe3 {[%clk 0:00:18]}  Bg6 {[%clk 0:00:55]} 23. Bxg6 {[%clk 0:00:17]}  hxg6 {[%clk 0:00:55]} 24. Rad1 {[%clk 0:00:12]}  Qf6 {[%clk 0:00:54]} 25. b4 {[%clk 0:00:10]}  e5 {[%clk 0:00:47]} 26. b5 {[%clk 0:00:08]}  Nd4 {[%clk 0:00:46]} 27. Bxd4 {[%clk 0:00:08]}  exd4 {[%clk 0:00:47]} 28. Qxd4 {[%clk 0:00:08]}  Qxd4 {[%clk 0:00:46]} 29. Rxd4 {[%clk 0:00:09]}  Rc3 {[%clk 0:00:46]} 30. a4 {[%clk 0:00:09]}  Ra3 {[%clk 0:00:39]} 31. Rfd1 {[%clk 0:00:08]}  Re2 {[%clk 0:00:37]} 32. Kf1 {[%clk 0:00:03]}  Raa2 {[%clk 0:00:35]} 33. Rf4 {[%clk 0:00:03]}  Red2 {[%clk 0:00:30]} 34. Rxd2 {[%clk 0:00:03]}  Rxd2 {[%clk 0:00:30]} 35. Rc4 {[%clk 0:00:03]}  Ra2 {[%clk 0:00:28]} 36. Rc7 {[%clk 0:00:03]}  Rxa4 {[%clk 0:00:28]} 37. Rxb7 {[%clk 0:00:04]}  f6 {[%clk 0:00:27]} 38. Ke2 {[%clk 0:00:04]}  g5 {[%clk 0:00:27]} 39. Kf3 {[%clk 0:00:04]}  Kh7 {[%clk 0:00:27]} 40. Kg3 {[%clk 0:00:05]}  Kg6 {[%clk 0:00:28]} 41. f3 {[%clk 0:00:05]}  f5 {[%clk 0:00:25]} 42. b6 {[%clk 0:00:05]}  axb6 {[%clk 0:00:20]} 43. Rxb6+ {[%clk 0:00:06]}  Kh5 {[%clk 0:00:20]} 44. Kh2 {[%clk 0:00:05]}  Ra2 {[%clk 0:00:18]} 45. Rb7 {[%clk 0:00:05]}  Kg6 {[%clk 0:00:17]} 46. Rb6+ {[%clk 0:00:05]}  Kf7 {[%clk 0:00:16]} 47. Rb7+ {[%clk 0:00:05]}  Kf6 {[%clk 0:00:17]} 48. Rb6+ {[%clk 0:00:06]}  Ke5 {[%clk 0:00:16]} 49. Rb5+ {[%clk 0:00:06]}  Kf4 {[%clk 0:00:15]} 50. Rb4+ {[%clk 0:00:07]}  Ke3 {[%clk 0:00:15]} 51. Rb5 {[%clk 0:00:07]}  Kf4 {[%clk 0:00:11]} 52. Rb4+ {[%clk 0:00:08]}  Ke5 {[%clk 0:00:11]} 53. Rb5+ {[%clk 0:00:08]}  Kf6 {[%clk 0:00:12]} 54. Rb6+ {[%clk 0:00:09]}  Kf7 {[%clk 0:00:12]} 55. Rb7+ {[%clk 0:00:09]}  Kg6 {[%clk 0:00:13]} 56. Rb6+ {[%clk 0:00:10]}  Kh5 {[%clk 0:00:13]} 57. Rb5 {[%clk 0:00:10]}  f4 {[%clk 0:00:13]} 58. Rb7 {[%clk 0:00:10]}  Kg6 {[%clk 0:00:13]} 59. Rb6+ {[%clk 0:00:10]}  Kf5 {[%clk 0:00:13]} 60. Rb5+ {[%clk 0:00:11]}  Kf6 {[%clk 0:00:13]} 61. Rb6+ {[%clk 0:00:11]}  Ke5 {[%clk 0:00:13]} 62. Rb5+ {[%clk 0:00:11]}  Kf6 {[%clk 0:00:13]} 63. Rb6+ {[%clk 0:00:12]}  Kf7 {[%clk 0:00:12]} 64. Rb7+ {[%clk 0:00:12]}  Kg6 {[%clk 0:00:12]} 65. Rb6+ {[%clk 0:00:12]}  Kh5 {[%clk 0:00:13]} 66. Rb7 {[%clk 0:00:12]}  Kh6 {[%clk 0:00:12]} 67. Rb6+ {[%clk 0:00:12]}  g6 {[%clk 0:00:12]} 68. Rb8 {[%clk 0:00:12]}  Ra1 {[%clk 0:00:11]} 69. Rh8+ {[%clk 0:00:11]}  Kg7 {[%clk 0:00:11]} 70. Rb8 {[%clk 0:00:12]}  Kf6 {[%clk 0:00:11]} 71. Rb6+ {[%clk 0:00:12]}  Kf5 {[%clk 0:00:11]} 72. Rb5+ {[%clk 0:00:13]}  Kf6 {[%clk 0:00:12]} 73. Rb6+ {[%clk 0:00:13]}  Kg7 {[%clk 0:00:12]} 74. Rb7+ {[%clk 0:00:13]}  Kh6 {[%clk 0:00:12]} 75. Rb8 {[%clk 0:00:14]}  Ra5 {[%clk 0:00:12]} 76. Rh8+ {[%clk 0:00:13]}  Kg7 {[%clk 0:00:12]} 77. Rb8 {[%clk 0:00:14]}  Kf6 {[%clk 0:00:12]} 78. Rb6+ {[%clk 0:00:14]}  Kf5 {[%clk 0:00:12]} 79. Rb4 {[%clk 0:00:14]}  Rd5 {[%clk 0:00:12]} 80. Ra4 {[%clk 0:00:13]}  Rd6 {[%clk 0:00:12]} 81. Rb4 {[%clk 0:00:14]}  Ke5 {[%clk 0:00:12]} 82. Ra4 {[%clk 0:00:14]}  Rd4 {[%clk 0:00:10]} 83. Ra5+ {[%clk 0:00:14]}  Rd5 {[%clk 0:00:11]} 84. Ra6 {[%clk 0:00:14]}  Kd4 {[%clk 0:00:10]} 85. Rxg6 {[%clk 0:00:14]}  Ke3 {[%clk 0:00:10]} 86. h4 {[%clk 0:00:14]}  gxh4 {[%clk 0:00:10]} 87. Kh3 {[%clk 0:00:15]}  Kf2 {[%clk 0:00:07]} 88. Rg4 {[%clk 0:00:15]}  Rd1 {[%clk 0:00:06]} 89. Rxh4 {[%clk 0:00:14]}  Rh1+ {[%clk 0:00:06]} 90. Kg4 {[%clk 0:00:14]}  Rxh4+ {[%clk 0:00:06]} 91. Kxh4 {[%clk 0:00:15]}  Kxg2 {[%clk 0:00:06]} 92. Kg4 {[%clk 0:00:16]}  Kf2 {[%clk 0:00:06]} 93. Kxf4 {[%clk 0:00:16]}  Ke2 {[%clk 0:00:06]} 94. Ke4 {[%clk 0:00:17]} 1-0


[Site "https://www.chess.com"]

[Event "Titled Tuesday Blitz March 21 Late 2023"]
[White "rionelG"]
[Black "Hartikainen, Jarmo"]
[BlackFideId "503134"]
[WhiteElo "2273"]
[BlackElo "2172"]
[Result "0-1"]
[Round "07"]
[TimeControl "180+2"]
[Date "2023.03.21"]
[WhiteClock "0:00:07"]
[BlackClock "0:00:08"]

1. e4 {[%clk 0:02:46]}  c5 {[%clk 0:02:59]} 2. g3 {[%clk 0:02:45]}  g6 {[%clk 0:02:57]} 3. Bg2 {[%clk 0:02:45]}  Bg7 {[%clk 0:02:57]} 4. Ne2 {[%clk 0:02:46]}  Nc6 {[%clk 0:02:56]} 5. c3 {[%clk 0:02:46]}  e5 {[%clk 0:02:55]} 6. d3 {[%clk 0:02:46]}  Nf6 {[%clk 0:02:44]} 7. Be3 {[%clk 0:02:40]}  d6 {[%clk 0:02:40]} 8. h3 {[%clk 0:02:39]}  h6 {[%clk 0:02:32]} 9. O-O {[%clk 0:02:17]}  Be6 {[%clk 0:02:31]} 10. f4 {[%clk 0:02:14]}  Qd7 {[%clk 0:02:15]} 11. Nd2 {[%clk 0:02:07]}  Bxh3 {[%clk 0:02:13]} 12. f5 {[%clk 0:02:04]}  Bxg2 {[%clk 0:02:12]} 13. Kxg2 {[%clk 0:02:04]}  Ng4 {[%clk 0:02:03]} 14. Bg1 {[%clk 0:01:59]}  h5 {[%clk 0:02:02]} 15. a4 {[%clk 0:01:52]}  Bh6 {[%clk 0:01:59]} 16. Nc4 {[%clk 0:01:44]}  b6 {[%clk 0:01:45]} 17. Qb3 {[%clk 0:01:32]}  d5 {[%clk 0:01:37]} 18. Na3 {[%clk 0:01:28]}  dxe4 {[%clk 0:01:13]} 19. dxe4 {[%clk 0:01:29]}  Qd3 {[%clk 0:01:10]} 20. Qc4 {[%clk 0:01:06]}  Qxc4 {[%clk 0:01:06]} 21. Nxc4 {[%clk 0:01:07]}  O-O {[%clk 0:00:48]} 22. a5 {[%clk 0:00:58]}  b5 {[%clk 0:00:46]} 23. Nd6 {[%clk 0:00:58]}  a6 {[%clk 0:00:46]} 24. Bxc5 {[%clk 0:00:58]}  Be3 {[%clk 0:00:34]} 25. Ba3 {[%clk 0:00:49]}  Rad8 {[%clk 0:00:15]} 26. fxg6 {[%clk 0:00:43]}  fxg6 {[%clk 0:00:14]} 27. Rxf8+ {[%clk 0:00:41]}  Rxf8 {[%clk 0:00:14]} 28. Rf1 {[%clk 0:00:31]}  Rxf1 {[%clk 0:00:14]} 29. Kxf1 {[%clk 0:00:31]}  Nxa5 {[%clk 0:00:14]} 30. Ng1 {[%clk 0:00:23]}  Bxg1 {[%clk 0:00:12]} 31. Kxg1 {[%clk 0:00:24]}  Nc4 {[%clk 0:00:12]} 32. Nxc4 {[%clk 0:00:23]}  bxc4 {[%clk 0:00:12]} 33. Kf1 {[%clk 0:00:22]}  Ne3+ {[%clk 0:00:13]} 34. Ke2 {[%clk 0:00:20]}  Nc2 {[%clk 0:00:12]} 35. Bd6 {[%clk 0:00:19]}  Kf7 {[%clk 0:00:09]} 36. Bxe5 {[%clk 0:00:19]}  Ke6 {[%clk 0:00:10]} 37. Bd4 {[%clk 0:00:19]}  Na1 {[%clk 0:00:10]} 38. Ke3 {[%clk 0:00:18]}  Nb3 {[%clk 0:00:10]} 39. Kf4 {[%clk 0:00:18]}  a5 {[%clk 0:00:09]} 40. Bg7 {[%clk 0:00:17]}  a4 {[%clk 0:00:08]} 41. Kg5 {[%clk 0:00:17]}  Kf7 {[%clk 0:00:09]} 42. Be5 {[%clk 0:00:16]}  Nc5 {[%clk 0:00:08]} 43. Kf4 {[%clk 0:00:14]}  Nd3+ {[%clk 0:00:09]} 44. Ke3 {[%clk 0:00:13]}  Nxe5 {[%clk 0:00:09]} 45. Kd4 {[%clk 0:00:14]}  Ke6 {[%clk 0:00:09]} 46. Kc5 {[%clk 0:00:13]}  g5 {[%clk 0:00:09]} 47. Kd4 {[%clk 0:00:10]}  Kd6 {[%clk 0:00:08]} 48. Ke3 {[%clk 0:00:08]}  Kc5 {[%clk 0:00:08]} 49. Ke2 {[%clk 0:00:04]}  Nd3 {[%clk 0:00:08]} 50. Ke3 {[%clk 0:00:04]}  Nxb2 {[%clk 0:00:08]} 51. e5 {[%clk 0:00:05]}  Kd5 {[%clk 0:00:08]} 52. e6 {[%clk 0:00:06]}  Kxe6 {[%clk 0:00:08]} 53. Kd4 {[%clk 0:00:07]}  a3 {[%clk 0:00:08]} 0-1


[Site "https://www.chess.com"]

[Event "Titled Tuesday Blitz March 21 Late 2023"]
[White "Roman, Rodrigo"]
[Black "Ricaurte Lopez, Juan Carlos"]
[WhiteFideId "3701220"]
[BlackFideId "3600327"]
[WhiteElo "1995"]
[BlackElo "2209"]
[Result "1-0"]
[Round "07"]
[TimeControl "180+2"]
[Date "2023.03.21"]
[WhiteClock "0:00:14"]
[BlackClock "0:00:01"]

1. e4 {[%clk 0:03:00]}  e5 {[%clk 0:02:59]} 2. Nf3 {[%clk 0:03:00]}  d5 {[%clk 0:02:59]} 3. exd5 {[%clk 0:02:57]}  e4 {[%clk 0:02:58]} 4. Qe2 {[%clk 0:02:56]}  Nf6 {[%clk 0:02:58]} 5. d3 {[%clk 0:02:54]}  Be7 {[%clk 0:02:58]} 6. dxe4 {[%clk 0:02:43]}  O-O {[%clk 0:02:58]} 7. Bf4 {[%clk 0:02:38]}  Re8 {[%clk 0:02:56]} 8. Nbd2 {[%clk 0:02:37]}  c6 {[%clk 0:02:31]} 9. dxc6 {[%clk 0:02:35]}  Nxc6 {[%clk 0:02:30]} 10. O-O-O {[%clk 0:02:34]}  Bg4 {[%clk 0:02:27]} 11. h3 {[%clk 0:02:31]}  Bh5 {[%clk 0:01:40]} 12. Nc4 {[%clk 0:02:08]}  Qc8 {[%clk 0:01:37]} 13. Qe3 {[%clk 0:01:48]}  Nb4 {[%clk 0:01:33]} 14. Kb1 {[%clk 0:01:46]}  Bc5 {[%clk 0:01:32]} 15. Qb3 {[%clk 0:01:43]}  Nxe4 {[%clk 0:01:30]} 16. Bg3 {[%clk 0:01:17]}  Bxf2 {[%clk 0:01:20]} 17. Nd6 {[%clk 0:01:14]}  Bxg3 {[%clk 0:00:50]} 18. Nxc8 {[%clk 0:01:10]}  Bxf3 {[%clk 0:00:48]} 19. gxf3 {[%clk 0:01:09]}  Nd2+ {[%clk 0:00:48]} 20. Ka1 {[%clk 0:00:53]}  Nxb3+ {[%clk 0:00:47]} 21. axb3 {[%clk 0:00:53]}  Raxc8 {[%clk 0:00:43]} 22. c3 {[%clk 0:00:51]}  Nc2+ {[%clk 0:00:38]} 23. Kb1 {[%clk 0:00:51]}  Ne3 {[%clk 0:00:36]} 24. Rd7 {[%clk 0:00:50]}  Rc7 {[%clk 0:00:25]} 25. Rd4 {[%clk 0:00:31]}  Nxf1 {[%clk 0:00:22]} 26. Rxf1 {[%clk 0:00:31]}  g6 {[%clk 0:00:21]} 27. Rfd1 {[%clk 0:00:25]}  Re2 {[%clk 0:00:20]} 28. Rd7 {[%clk 0:00:20]}  Re7 {[%clk 0:00:17]} 29. Rd8+ {[%clk 0:00:20]}  Kg7 {[%clk 0:00:16]} 30. R8d2 {[%clk 0:00:21]}  h5 {[%clk 0:00:15]} 31. Rg2 {[%clk 0:00:19]}  h4 {[%clk 0:00:16]} 32. Rd4 {[%clk 0:00:19]}  Re3 {[%clk 0:00:15]} 33. f4 {[%clk 0:00:18]}  Rf3 {[%clk 0:00:16]} 34. Re4 {[%clk 0:00:17]}  Rc6 {[%clk 0:00:15]} 35. Rb4 {[%clk 0:00:17]}  b6 {[%clk 0:00:14]} 36. Ra4 {[%clk 0:00:17]}  a5 {[%clk 0:00:14]} 37. f5 {[%clk 0:00:17]}  gxf5 {[%clk 0:00:13]} 38. Rxh4 {[%clk 0:00:17]}  f4 {[%clk 0:00:12]} 39. Rg4+ {[%clk 0:00:17]}  Kf6 {[%clk 0:00:12]} 40. h4 {[%clk 0:00:17]}  Ke5 {[%clk 0:00:11]} 41. Rg7 {[%clk 0:00:17]}  Rf6 {[%clk 0:00:09]} 42. h5 {[%clk 0:00:17]}  Rf2 {[%clk 0:00:08]} 43. R7xg3 {[%clk 0:00:15]}  fxg3 {[%clk 0:00:07]} 44. Rxg3 {[%clk 0:00:16]}  Rh6 {[%clk 0:00:04]} 45. Re3+ {[%clk 0:00:15]}  Kf4 {[%clk 0:00:03]} 46. Rd3 {[%clk 0:00:15]}  Kg4 {[%clk 0:00:02]} 47. Rd5 {[%clk 0:00:14]}  f5 {[%clk 0:00:01]} 48. Rd8 {[%clk 0:00:13]}  f4 {[%clk 0:00:01]} 49. Rg8+ {[%clk 0:00:14]}  Kf3 {[%clk 0:00:01]} 50. Rh8 {[%clk 0:00:14]} 1-0


[Site "https://www.chess.com"]